{"text_format":"1","workbook":"xlsx","n_sheets":9,"sheets":["xxx3","prg1","prg2","xxx1","xxx2","vt1","AL1","Açıklamalar","Sayfa1"],"not_rendered":{"charts":0,"images":1,"macros":1,"external_links":0,"defined_names":2,"comments":1,"pivot_tables":0},"unopened":[{"sheet":"xxx3","index":0,"reason":"not_a_worksheet"},{"sheet":"xxx1","index":3,"reason":"not_a_worksheet"},{"sheet":"xxx2","index":4,"reason":"not_a_worksheet"}],"bounds":{"document_bytes":16777216,"sheet_cells":100000,"rows_first":2000,"rows_last":500,"rows_between":2000,"halvings":0,"cell_chars":16384,"cell_head_chars":4096},"cells_cut":0,"cells_raw":0,"read":"whole","date_system":"1900"}

{"sheet":"prg1","index":1,"n_rows":38,"n_cols":21,"rows_kept":38,"cut":false,"hidden":false,"merged":[[0,19,2,19],[0,15,2,18],[10,15,11,15],[3,15,5,15],[3,17,5,17],[3,19,5,19],[6,19,9,19],[10,19,11,19],[20,19,22,19],[16,19,17,19],[18,19,19,19],[12,19,13,19],[14,19,15,19],[18,17,19,17],[18,15,19,15],[20,15,22,15],[20,17,22,17],[16,17,17,17],[16,15,17,15],[14,17,15,17],[14,15,15,15],[12,15,13,15],[12,17,13,17],[6,15,9,15],[6,17,9,17],[10,17,11,17]]}
[null,null,null,null,null,null,null,null,null,null,null,null,null,null,null,"Okul\nOrtalaması",null,null,null,{"$f":"'prg2'!AK2","v":33}]
[]
[]
[null,null,null,null,"9. Sınıf","10. Sınıf","11-FM","11-TM","12-FM","12-TM","Mezun FM","Mezun TM",null,"Toplum Ders Saati",null,"BÖLÜMÜN HAFTALIK DERS SAATİ TOPLAMI",null,"ÖĞRETMEN İHTİYACI",null,"ZÜMRE ÖĞRETMENİN ORTALAMA DERS SAATİ"]
[null,null,"Şubelerin Haftalık Ders Saati Toplamı (40)",null,{"$f":"SUM(E7:E32)","v":40},{"$f":"SUM(F7:F32)","v":40},40,40,40,40,40,40,null,{"$f":"'prg2'!Y2","v":720}]
[null,null,"Sınıf Seviyesinde Açılan Şube Sayıları",null,1,3,2,1,3,2,3,3,null,{"$f":"SUM(E6:L6)","v":18}]
[null,1,"MATEMATİK - S.TEMEL MATEMATİK",null,6,6,0,0,0,0,0,0,null,{"$f":"'prg2'!W7","v":24},null,{"$f":"'prg2'!Y7:Y10","v":108},null,{"$f":"IF(P7=0,\"\",'prg2'!AG7:AG10)","v":3},null,{"$f":"'prg2'!AI7:AI10","v":36}]
[null,2,"S.MATEMATİK 1 (TYT)",null,0,0,0,0,0,0,0,0,null,{"$f":"'prg2'!W8","v":""},null,null,null,null,null,null,"alsob"]
[null,3,"S.MATEMATİK 2 (AYT)",null,0,0,6,6,6,6,6,6,null,{"$f":"'prg2'!W9","v":84}]
[null,4,"GEOMETRİ",null,0,0,0,0,0,0,0,0,null,{"$f":"'prg2'!W10","v":""}]
[null,5,"TÜRK DİLİ VE EDEBİYATI",null,5,5,5,5,5,5,5,5,null,{"$f":"'prg2'!W11","v":90},null,{"$f":"'prg2'!Y11:Y12","v":90},null,{"$f":"IF(P11=0,\"\",'prg2'!AG11:AG12)","v":3},null,{"$f":"'prg2'!AI11:AI12","v":30}]
[null,6,"TÜRKÇE",null,0,0,0,0,0,0,0,0,null,{"$f":"'prg2'!W12","v":""}]
[null,7,"TARİH + TC İnk. Tarihi ve Atatürkçülük",null,2,2,2,2,2,2,2,2,null,{"$f":"'prg2'!W13","v":36},null,{"$f":"'prg2'!Y13:Y14","v":60},null,{"$f":"IF(P13=0,\"\",'prg2'!AG13:AG14)","v":2},null,{"$f":"'prg2'!AI13:AI14","v":30}]
[null,8,"SEÇMELİ TARİH",null,0,0,0,4,0,4,0,4,null,{"$f":"'prg2'!W14","v":24}]
[null,9,"COĞRAFYA",null,2,2,0,0,0,0,0,0,null,{"$f":"'prg2'!W15","v":8},null,{"$f":"'prg2'!Y15:Y16","v":32},null,{"$f":"IF(P15=0,\"\",'prg2'!AG15:AG16)","v":1},null,{"$f":"'prg2'!AI15:AI16","v":32}]
[null,10,"SEÇMELİ COĞRAFYA",null,0,0,0,4,0,4,0,4,null,{"$f":"'prg2'!W16","v":24}]
[null,11,"FİZİK",null,2,2,0,0,0,0,0,0,null,{"$f":"'prg2'!W17","v":8},null,{"$f":"'prg2'!Y17:Y18","v":40},null,{"$f":"IF(P17=0,\"\",'prg2'!AG17:AG18)","v":1},null,{"$f":"'prg2'!AI17:AI18","v":40}]
[null,12,"SEÇMELİ FİZİK",null,0,0,4,0,4,0,4,0,null,{"$f":"'prg2'!W18","v":32}]
[null,13,"KİMYA",null,2,2,0,0,0,0,0,0,null,{"$f":"'prg2'!W19","v":8},null,{"$f":"'prg2'!Y19:Y20","v":40},null,{"$f":"IF(P19=0,\"\",'prg2'!AG19:AG20)","v":1},null,{"$f":"'prg2'!AI19:AI20","v":40}]
[null,14,"SEÇMELİ KİMYA",null,0,0,4,0,4,0,4,0,null,{"$f":"'prg2'!W20","v":32}]
[null,15,"BİYOLOJİ",null,2,2,0,0,0,0,0,0,null,{"$f":"'prg2'!W21","v":8},null,{"$f":"'prg2'!Y21:Y23","v":41},null,{"$f":"IF(P21=0,\"\",'prg2'!AG21:AG23)","v":1},null,{"$f":"'prg2'!AI21:AI23","v":41}]
[null,16,"SEÇMELİ BİYOLOJİ",null,0,0,4,0,4,0,4,0,null,{"$f":"'prg2'!W22","v":32}]
[null,17,"SAĞLIK BİLGİSİ VE TRAFİK KÜLTÜRÜ",null,1,0,0,0,0,0,0,0,null,{"$f":"'prg2'!W23","v":1}]
[null,18,"DİN KÜLTÜRÜ VE AHLAK BİLGİSİ",null,2,2,2,2,2,2,2,2,null,{"$f":"'prg2'!W24","v":36},null,{"$f":"'prg2'!Y24","v":36},null,{"$f":"IF(P24=0,\"\",'prg2'!AG24)","v":1},null,{"$f":"'prg2'!AI24","v":36}]
[null,19,"FELSEFE",null,0,2,2,2,0,0,0,0,null,{"$f":"'prg2'!W25","v":12},null,{"$f":"'prg2'!Y25","v":12},null,{"$f":"IF(P25=0,\"\",'prg2'!AG25)","v":1},null,{"$f":"'prg2'!AI25","v":12}]
[null,20,"BİRİNCİ YABANCI DİL",null,4,4,4,4,4,4,4,4,null,{"$f":"'prg2'!W26","v":72},null,{"$f":"'prg2'!Y26","v":72},null,{"$f":"IF(P26=0,\"\",'prg2'!AG26)","v":2},null,{"$f":"'prg2'!AI26","v":18}]
[null,21,"İKİNCİ YABANCI DİL",null,2,2,2,2,2,2,2,2,null,{"$f":"'prg2'!W27","v":36},null,{"$f":"'prg2'!Y27","v":36},null,{"$f":"IF(P27=0,\"\",'prg2'!AG27)","v":1},null,{"$f":"'prg2'!AI27","v":36}]
[null,22,"BEDEN EĞİTİMİ VE SPOR",null,2,2,2,2,2,2,2,2,null,{"$f":"'prg2'!W28","v":36},null,{"$f":"'prg2'!Y28","v":36},null,{"$f":"IF(P28=0,\"\",'prg2'!AG28)","v":1},null,{"$f":"'prg2'!AI28","v":36}]
[null,23,"GÖRSEL SANATLAR / MÜZİK",null,2,2,2,2,2,2,2,2,null,{"$f":"'prg2'!W29","v":36},null,{"$f":"'prg2'!Y29","v":36},null,{"$f":"IF(P29=0,\"\",'prg2'!AG29)","v":1},null,{"$f":"'prg2'!AI29","v":36}]
[null,24,"(yeni dersi buraya ekle)",null,0,0,0,0,0,0,0,0,null,{"$f":"'prg2'!W30","v":""},null,{"$f":"'prg2'!Y30","v":0},null,{"$f":"IF(P30=0,\"\",'prg2'!AG30)","v":""},null,{"$f":"'prg2'!AI30","v":""}]
[null,25,"SEÇİLEBİLECEK DERS SAATİ SAYISI",null,5,4,0,4,2,6,2,6,null,{"$f":"'prg2'!W31","v":63},null,{"$f":"'prg2'!Y31","v":63},null,{"$f":"IF(P31=0,\"\",'prg2'!AG31)","v":2},null,{"$f":"'prg2'!AI31","v":32}]
[null,26,"REHBERLİK VE YÖNLENDİRME",null,1,1,1,1,1,1,1,1,null,{"$f":"'prg2'!W32","v":18},null,{"$f":"'prg2'!Y32","v":18},null,{"$f":"IF(P32=0,\"\",'prg2'!AG32)","v":1},null,{"$f":"'prg2'!AI32","v":18}]
[null,null,"TOPLAM DERS SAATİ",null,{"$f":"SUM(E7:E32)","v":40},{"$f":"SUM(F7:F32)","v":40},40,40,40,40,40,40,null,{"$f":"'prg2'!W33","v":720},null,{"$f":"'prg2'!Y33","v":720},null,{"$f":"'prg2'!AG33","v":21},null,{"$f":"'prg2'!AI33","v":34.285714285714285}]
[]
[null,null,{"$f":"'AL1'!B1","v":"KAYNAK: Talim ve Terbiye Kurulu Başkanlığı, 01/11/2021 tarih, 45 sayı ve \"Ortaöğretim Kurumları Haftalık Ders Çizelgelerinde Değişiklik\" konulu yazısı."}]
[]
["Programla ilgili ÖNERİ, ELEŞTİRİ, DESTEK ve ÖZEL İSTEK için: seferyuruk@hotmail.com"]
["Yeni programlara veya güncellenmiş yeni sürümlerine, www.iyiorneklerlisesi.com adlı siteden ücretsiz indirebilirsiniz."]

{"sheet":"prg2","index":2,"n_rows":35,"n_cols":37,"rows_kept":35,"cut":false,"hidden":true,"merged":[[3,2,4,2],[6,24,9,24],[10,24,11,24],[12,24,13,24],[6,28,9,28],[10,28,11,28],[12,28,13,28],[14,24,15,24],[16,24,17,24],[18,24,19,24],[20,24,22,24],[6,26,9,26],[10,26,11,26],[12,26,13,26],[14,26,15,26],[16,26,17,26],[18,26,19,26],[20,26,22,26],[20,34,22,34],[6,30,9,30],[10,30,11,30],[12,30,13,30],[14,30,15,30],[16,30,17,30],[6,34,9,34],[10,34,11,34],[12,34,13,34],[6,32,9,32],[10,32,11,32],[12,32,13,32],[16,36,17,36],[18,36,19,36],[20,36,22,36],[14,28,15,28],[16,28,17,28],[18,28,19,28],[20,28,22,28],[18,30,19,30],[20,30,22,30],[14,32,15,32],[16,32,17,32],[18,32,19,32],[20,32,22,32],[14,34,15,34],[16,34,17,34],[18,34,19,34],[1,36,2,36],[6,36,9,36],[10,36,11,36],[12,36,13,36],[14,36,15,36],[1,20,2,23],[1,24,2,24],[1,26,2,29],[1,30,2,30],[1,32,2,35]]}
[35]
["............ ANADOLU LİSESİ ÖĞRETMEN BELİRLEME PROGRAMI ÜSKÜDAR",null,"ANADOLU LİSESİ",null,null,null,null,null,null,null,null,null,null,null,null,null,null,null,null,null,"OKULUN TOPLAM DERS SAYISI",null,null,null,{"$f":"SUM(W7:W32)","v":720},null,"ÖĞRETMEN İHTİYACI",null,null,null,{"$f":"SUM(AG7:AG32)","v":22},null,"ORTALAMA BİRİM DERS SAATİ",null,null,null,{"$f":"ROUNDUP(Y2/AE2,0)","v":33}]
[null,null,"HAFTALIK DERS ÇİZELGESİ"]
[null,null,"DERSLER",null,"9.","10.","11FM","11TM","12FM","12TM","MezunFM","MezunTM",null,"9.","10.","11FM","11TM","12FM","12TM","MezunFM","MezunTM",null,"Ders Toplamları",null,"GENEL TOPLAM",null,"ÖĞRETMEN İHTİYACI 1",null,"Artık Ders Sayısı",null,"Artıklar Paylaşınca",null,"Nihai Öğretmen Sayısı",null,"Her Öğretmene düşen Ders"]
[null,null,null,null,null,null,null,null,null,null,null,null,null,null,null,null,null,null,null,null,null,null,null,null,null,null,{"$f":"A1","v":35}]
[null,null,"ŞUBE SAYILARI",null,1,1,1,1,1,1,1,1,null,{"$f":"'prg1'!E6","v":1},{"$f":"'prg1'!F6","v":3},{"$f":"'prg1'!G6","v":2},{"$f":"'prg1'!H6","v":1},{"$f":"'prg1'!I6","v":3},{"$f":"'prg1'!J6","v":2},{"$f":"'prg1'!K6","v":3},{"$f":"'prg1'!L6","v":3},null,null,null,null,null,{"$f":"ROUNDUP(AA5/3,0)","v":12}]
[null,null,{"$f":"PrgTablo1","v":"MATEMATİK - S.TEMEL MATEMATİK"},null,{"$f":"PrgTablo1*E6","v":6},6,0,0,0,0,0,0,null,{"$f":"IF(ISBLANK(E7),\"\",E7*N$6)","v":6},18,0,0,0,0,0,0,null,{"$f":"IF(SUM(N7:U7)=0,\"\",SUM(N7:U7))","v":24},null,{"$f":"SUM(W7:W10)","v":108},null,{"$f":"IF($AA$5>Y7,1,ROUNDDOWN(Y7/$AA$5,0))","v":3},null,{"$f":"Y7-(AA7*$AA$5)","v":3},null,{"$f":"IF($AC$7>=$AA$6,$AC$7,ROUNDUP($AC$7/$AA$7,0))","v":1},null,{"$f":"IF(AC7>=$AA$6,(AA7+1),AA7)","v":3},null,{"$f":"ROUNDUP(IF(AE7>$AA$6,(AA7*$AA$5+AE7)/AG7,(AE7+AA7*$AA$5)/AG7),0)","v":36},null,{"$f":"AG7*AI7","v":108}]
[null,null,"S.MATEMATİK 1 (TYT)",null,0,0,0,0,0,0,0,0,null,0,0,0,0,0,0,0,0,null,{"$f":"IF(SUM(N8:U8)=0,\"\",SUM(N8:U8))","v":""}]
[null,null,"S.MATEMATİK 2 (AYT)",null,0,0,6,6,6,6,6,6,null,0,0,12,6,18,12,18,18,null,84]
[null,null,"GEOMETRİ",null,0,0,0,0,0,0,0,0,null,0,0,0,0,0,0,0,0,null,""]
[null,null,"TÜRK DİLİ VE EDEBİYATI",null,5,5,5,5,5,5,5,5,null,5,15,10,5,15,10,15,15,null,90,null,{"$f":"SUM(W11:W12)","v":90},null,{"$f":"IF($AA$5>Y11,1,ROUNDDOWN(Y11/$AA$5,0))","v":2},null,{"$f":"Y11-(AA11*$AA$5)","v":20},null,{"$f":"IF(AC11>=$AA$6,AC11,ROUNDUP(AC11/AA11,0))","v":20},null,{"$f":"IF(AC11>=$AA$6,(AA11+1),AA11)","v":3},null,{"$f":"ROUNDUP(IF(AE11>$AA$6,(AA11*$AA$5+AE11)/AG11,(AE11+AA11*$AA$5)/AG11),0)","v":30},null,{"$f":"AG11*AI11","v":90}]
[null,null,"TÜRKÇE",null,0,0,0,0,0,0,0,0,null,0,0,0,0,0,0,0,0,null,""]
[null,null,"TARİH + TC İnk. Tarihi ve Atatürkçülük",null,2,2,2,2,2,2,2,2,null,2,6,4,2,6,4,6,6,null,36,null,{"$f":"SUM(W13:W14)","v":60},null,{"$f":"IF($AA$5>Y13,1,ROUNDDOWN(Y13/$AA$5,0))","v":1},null,{"$f":"Y13-(AA13*$AA$5)","v":25},null,{"$f":"IF(AC13>=$AA$6,AC13,ROUNDUP(AC13/AA13,0))","v":25},null,{"$f":"IF(AC13>=$AA$6,(AA13+1),AA13)","v":2},null,{"$f":"ROUNDUP(IF(AE13>$AA$6,(AA13*$AA$5+AE13)/AG13,(AE13+AA13*$AA$5)/AG13),0)","v":30},null,{"$f":"AG13*AI13","v":60}]
[null,null,"SEÇMELİ TARİH",null,0,0,0,4,0,4,0,4,null,0,0,0,4,0,8,0,12,null,24]
[null,null,"COĞRAFYA",null,2,2,0,0,0,0,0,0,null,2,6,0,0,0,0,0,0,null,8,null,{"$f":"SUM(W15:W16)","v":32},null,{"$f":"IF($AA$5>Y15,1,ROUNDDOWN(Y15/$AA$5,0))","v":1},null,{"$f":"Y15-(AA15*$AA$5)","v":-3},null,{"$f":"IF(AC15>=$AA$6,AC15,ROUNDUP(AC15/AA15,0))","v":-3},null,{"$f":"IF(AC15>=$AA$6,(AA15+1),AA15)","v":1},null,{"$f":"ROUNDUP(IF(AE15>$AA$6,(AA15*$AA$5+AE15)/AG15,(AE15+AA15*$AA$5)/AG15),0)","v":32},null,{"$f":"AG15*AI15","v":32}]
[null,null,"SEÇMELİ COĞRAFYA",null,0,0,0,4,0,4,0,4,null,0,0,0,4,0,8,0,12,null,24]
[null,null,{"$f":"PrgTablo1","v":"FİZİK"},null,2,2,0,0,0,0,0,0,null,2,6,0,0,0,0,0,0,null,8,null,{"$f":"SUM(W17:W18)","v":40},null,{"$f":"IF($AA$5>Y17,1,ROUNDDOWN(Y17/$AA$5,0))","v":1},null,{"$f":"Y17-(AA17*$AA$5)","v":5},null,{"$f":"IF(AC17>=$AA$6,AC17,ROUNDUP(AC17/AA17,0))","v":5},null,{"$f":"IF(AC17>=$AA$6,(AA17+1),AA17)","v":1},null,{"$f":"ROUNDUP(IF(AE17>$AA$6,(AA17*$AA$5+AE17)/AG17,(AE17+AA17*$AA$5)/AG17),0)","v":40},null,{"$f":"AG17*AI17","v":40}]
[null,null,"SEÇMELİ FİZİK",null,0,0,4,0,4,0,4,0,null,0,0,8,0,12,0,12,0,null,32]
[null,null,"KİMYA",null,2,2,0,0,0,0,0,0,null,2,6,0,0,0,0,0,0,null,8,null,{"$f":"SUM(W19:W20)","v":40},null,{"$f":"IF($AA$5>Y19,1,ROUNDDOWN(Y19/$AA$5,0))","v":1},null,{"$f":"Y19-(AA19*$AA$5)","v":5},null,{"$f":"IF(AC19>=$AA$6,AC19,ROUNDUP(AC19/AA19,0))","v":5},null,{"$f":"IF(AC19>=$AA$6,(AA19+1),AA19)","v":1},null,{"$f":"ROUNDUP(IF(AE19>$AA$6,(AA19*$AA$5+AE19)/AG19,(AE19+AA19*$AA$5)/AG19),0)","v":40},null,{"$f":"AG19*AI19","v":40}]
[null,null,"SEÇMELİ KİMYA",null,0,0,4,0,4,0,4,0,null,0,0,8,0,12,0,12,0,null,32]
[null,null,"BİYOLOJİ",null,2,2,0,0,0,0,0,0,null,2,6,0,0,0,0,0,0,null,8,null,{"$f":"SUM(W21:W23)","v":41},null,{"$f":"IF($AA$5>Y21,1,ROUNDDOWN(Y21/$AA$5,0))","v":1},null,{"$f":"Y21-(AA21*$AA$5)","v":6},null,{"$f":"IF(AC21>=$AA$6,AC21,ROUNDUP(AC21/AA21,0))","v":6},null,{"$f":"IF(AC21>=$AA$6,(AA21+1),AA21)","v":1},null,{"$f":"ROUNDUP(IF(AE21>$AA$6,(AA21*$AA$5+AE21),AE21+$AA$5)/AG21,0)","v":41},null,{"$f":"AG21*AI21","v":41}]
[null,null,"SEÇMELİ BİYOLOJİ",null,0,0,4,0,4,0,4,0,null,{"$f":"IF(ISBLANK(E22),\"\",E22*N$6)","v":0},{"$f":"IF(ISBLANK(F22),\"\",F22*O$6)","v":0},{"$f":"IF(ISBLANK(G22),\"\",G22*P$6)","v":8},{"$f":"IF(ISBLANK(H22),\"\",H22*Q$6)","v":0},{"$f":"IF(ISBLANK(I22),\"\",I22*R$6)","v":12},{"$f":"IF(ISBLANK(J22),\"\",J22*S$6)","v":0},{"$f":"IF(ISBLANK(K22),\"\",K22*T$6)","v":12},{"$f":"IF(ISBLANK(L22),\"\",L22*U$6)","v":0},null,32]
[null,null,"SAĞLIK BİLGİSİ VE TRAFİK KÜLTÜRÜ",null,1,0,0,0,0,0,0,0,null,1,0,0,0,0,0,0,0,null,1]
[null,null,"DİN KÜLTÜRÜ VE AHLAK BİLGİSİ",null,2,2,2,2,2,2,2,2,null,2,6,4,2,6,4,6,6,null,36,null,{"$f":"SUM(W24:W24)","v":36},null,{"$f":"IF(W24=\"\",\"\",IF($AA$5>Y24,1,ROUNDDOWN(Y24/$AA$5,0)))","v":1},null,{"$f":"IF(W24=\"\",\"\",Y24-(AA24*$AA$5))","v":1},null,{"$f":"IF(AC24>=$AA$6,AC24,ROUNDUP(AC24/AA24,0))","v":1},null,{"$f":"IF(W24=\"\",\"\",IF(AC24>=$AA$6,(AA24+1),AA24))","v":1},null,{"$f":"IF(W24=\"\",\"\",ROUNDUP(IF(AE24>$AA$6,(AA24*$AA$5+AE24),AE24+$AA$5)/AG24,0))","v":36},null,{"$f":"IF(W24=\"\",\"\",AG24*AI24)","v":36}]
[null,null,"FELSEFE",null,0,2,2,2,0,0,0,0,null,0,6,4,2,0,0,0,0,null,12,null,{"$f":"SUM(W25:W25)","v":12},null,1,null,-23,null,-23,null,1,null,12,null,12]
[null,null,"BİRİNCİ YABANCI DİL",null,4,4,4,4,4,4,4,4,null,4,12,8,4,12,8,12,12,null,72,null,72,null,2,null,2,null,1,null,2,null,18,null,36]
[null,null,"İKİNCİ YABANCI DİL",null,2,2,2,2,2,2,2,2,null,2,6,4,2,6,4,6,6,null,36,null,36,null,1,null,1,null,1,null,1,null,36,null,36]
[null,null,{"$f":"PrgTablo1","v":"BEDEN EĞİTİMİ VE SPOR"},null,2,2,2,2,2,2,2,2,null,2,6,4,2,6,4,6,6,null,36,null,36,null,1,null,1,null,1,null,1,null,36,null,36]
[null,null,"GÖRSEL SANATLAR / MÜZİK",null,2,2,2,2,2,2,2,2,null,{"$f":"IF(ISBLANK(E29),\"\",E29*N$6)","v":2},{"$f":"IF(ISBLANK(F29),\"\",F29*O$6)","v":6},{"$f":"IF(ISBLANK(G29),\"\",G29*P$6)","v":4},{"$f":"IF(ISBLANK(H29),\"\",H29*Q$6)","v":2},{"$f":"IF(ISBLANK(I29),\"\",I29*R$6)","v":6},{"$f":"IF(ISBLANK(J29),\"\",J29*S$6)","v":4},{"$f":"IF(ISBLANK(K29),\"\",K29*T$6)","v":6},{"$f":"IF(ISBLANK(L29),\"\",L29*U$6)","v":6},null,{"$f":"IF(SUM(N29:U29)=0,\"\",SUM(N29:U29))","v":36},null,{"$f":"SUM(W29:W29)","v":36},null,{"$f":"IF(W29=\"\",\"\",IF($AA$5>Y29,1,ROUNDDOWN(Y29/$AA$5,0)))","v":1},null,{"$f":"IF(W29=\"\",\"\",Y29-(AA29*$AA$5))","v":1},null,{"$f":"IF(AC29>=$AA$6,AC29,ROUNDUP(AC29/AA29,0))","v":1},null,{"$f":"IF(W29=\"\",\"\",IF(AC29>=$AA$6,(AA29+1),AA29))","v":1},null,{"$f":"IF(W29=\"\",\"\",ROUNDUP(IF(AE29>$AA$6,(AA29*$AA$5+AE29),AE29+$AA$5)/AG29,0))","v":36},null,{"$f":"IF(W29=\"\",\"\",AG29*AI29)","v":36}]
[null,null,"(yeni dersi buraya ekle)",null,0,0,0,0,0,0,0,0,null,0,0,0,0,0,0,0,0,null,"",null,0,null,{"$f":"IF(W30=\"\",\"\",IF($AA$5>Y30,1,ROUNDDOWN(Y30/$AA$5,0)))","v":""},null,{"$f":"IF(W30=\"\",\"\",Y30-(AA30*$AA$5))","v":""},null,{"$f":"IF(AC30>=$AA$6,AC30,ROUNDUP(AC30/AA30,0))","v":""},null,{"$f":"IF(W30=\"\",\"\",IF(AC30>=$AA$6,(AA30+1),AA30))","v":""},null,{"$f":"IF(W30=\"\",\"\",ROUNDUP(IF(AE30>$AA$6,(AA30*$AA$5+AE30),AE30+$AA$5)/AG30,0))","v":""},null,{"$f":"IF(W30=\"\",\"\",AG30*AI30)","v":""}]
[null,null,"SEÇİLEBİLECEK DERS SAATİ SAYISI",null,5,4,0,4,2,6,2,6,null,5,12,0,4,6,12,6,18,null,63,null,63,null,{"$f":"IF($AA$5>Y31,1,ROUNDDOWN(Y31/$AA$5,0))","v":1},null,{"$f":"Y31-(AA31*$AA$5)","v":28},null,{"$f":"IF(AC31>=$AA$6,AC31,ROUNDUP(AC31/AA31,0))","v":28},null,{"$f":"IF(AC31>=$AA$6,(AA31+1),AA31)","v":2},null,{"$f":"ROUNDUP(IF(AE31>$AA$6,(AA31*$AA$5+AE31),AE31+$AA$5)/AG31,0)","v":32},null,{"$f":"AG31*AI31","v":64}]
[null,null,"REHBERLİK VE YÖNLENDİRME",null,1,1,1,1,1,1,1,1,null,1,3,2,1,3,2,3,3,null,18,null,18,null,1,null,{"$f":"Y32-(AA32*$AA$5)","v":-17},null,{"$f":"IF(AC32>=$AA$6,AC32,ROUNDUP(AC32/AA32,0))","v":-17},null,1,null,18,null,18]
[null,null,"TOPLAM DERS SAATİ",null,40,40,40,40,40,40,40,40,null,{"$f":"SUM(N7:N32)","v":40},120,80,40,120,80,120,120,null,{"$f":"IF(SUM(N33:U33)=0,\"\",SUM(N33:U33))","v":720},null,{"$f":"SUM(W33:W33)","v":720},null,{"$f":"IF($AA$5>Y33,1,ROUNDDOWN(Y33/$AA$5,0))","v":20},null,{"$f":"Y33-(AA33*$AA$5)","v":20},null,{"$f":"IF(AC33>=$AA$6,AC33,ROUNDUP(AC33/AA33,0))","v":20},null,{"$f":"IF(AC33>=$AA$6,(AA33+1),AA33)","v":21},null,{"$f":"IF(AE33>$AA$6,(AA33*$AA$5+AE33),AE33+$AA$5)/AG33","v":34.285714285714285},null,{"$f":"AG33*AI33","v":720}]
[]
[null,null,null,null,null,null,null,null,null,null,null,null,null,null,null,null,null,null,null,null,null,null,null,null,null,null,0]

{"sheet":"vt1","index":5,"n_rows":47,"n_cols":4,"rows_kept":47,"cut":false,"hidden":true,"merged":[]}
[]
[null,1,0]
[null,1,1,{"$f":"CONCATENATE(B11,\". Sınıf\")","v":"9. Sınıf"}]
[null,2,2,{"$f":"CONCATENATE(B12,\". Sınıf\")","v":"10. Sınıf"}]
[null,3,3,{"$f":"CONCATENATE(B13,\". Sınıf\")","v":"11. Sınıf"}]
[null,4,4,{"$f":"CONCATENATE(B14,\". Sınıf\")","v":"12. Sınıf"}]
[null,5,5,"11-FM"]
[null,6,6,"11-TM"]
[null,7,7,"12-FM"]
[null,8,8,"12-TM"]
[null,9,9,"Mezun FM"]
[null,10,10,"Mezun TM"]
[null,11,null,"PROJE"]
[null,12,null,"VİP"]
[null,13,null,"HAZIRLIK"]
[null,14,null,"ETKİNLİK"]
[null,15,null,{"$f":"CONCATENATE(B3,\". Sınıf\")","v":"1. Sınıf"}]
[null,16,null,"2. Sınıf"]
[null,17,null,"3. Sınıf"]
[null,18,null,"4. Sınıf"]
[null,19,null,"5. Sınıf"]
[null,20,null,"6. Sınıf"]
[null,21,null,"7. Sınıf"]
[null,22,null,"8. Sınıf"]
[null,23]
[null,24]
[null,25]
[null,26]
[null,27]
[null,28]
[null,29]
[null,30]
[null,31]
[null,32]
[null,33]
[null,34]
[null,35]
[null,36]
[null,37]
[null,38]
[null,39]
[null,40]
[null,41]
[null,42]
[null,43]
[null,44]
[null,45]

{"sheet":"AL1","index":6,"n_rows":69,"n_cols":19,"rows_kept":69,"cut":false,"hidden":true,"merged":[[1,1,1,6],[3,1,4,2],[3,9,4,9],[21,1,25,1],[26,1,32,1],[33,1,50,1],[2,1,2,6],[67,1,67,2],[68,1,68,2],[5,1,19,1],[64,1,65,1],[66,1,66,2],[20,1,20,2],[51,1,53,1],[54,1,56,1],[59,1,63,1]]}
[null,"KAYNAK: Talim ve Terbiye Kurulu Başkanlığı, 01/11/2021 tarih, 45 sayı ve \"Ortaöğretim Kurumları Haftalık Ders Çizelgelerinde Değişiklik\" konulu yazısı."]
[null,"ANADOLU LİSESİ",null,null,null,null,null,null,null,"ANADOLU LİSESİ"]
[null,null,null,null,null,null,null,null,null,"HAFTALIK DERS ÇİZELGESİ"]
[null,"DERSLER",null,"9.","10.","11.","12.",null,null,"DERSLER",null,"9.","10.","11FM","11TM","12FM","12TM","MezunFM","MezunTM"]
[null,null,null,"SINIF","SINIF","SINIF","SINIF"]
[null,"ORTAK DERSLER","TÜRK DİLİ VE EDEBİYATI",5,5,5,5,null,null,"ŞUBE SAYILARI",null,1,1,1,1,1,1,1,1]
[null,null,"DİN KÜLTÜRÜ VE AHLAK BİLGİSİ",2,2,2,2,null,null,"MATEMATİK",null,6,6]
[null,null,"TARİH",2,2,2,"-",null,null,"S.MATEMATİK 1 (TYT)"]
[null,null,"T.C. İNKILAP TARİHİ VE ATATÜRKÇÜLÜK","-","-","-",2,null,null,"S.MATEMATİK 2 (AYT)",null,null,null,6,6,6,6,6,6]
[null,null,"COĞRAFYA",2,2,"-","-",null,null,"GEOMETRİ"]
[null,null,"MATEMATİK",6,6,"-","-",null,null,"TÜRK DİLİ VE EDEBİYATI",null,5,5,5,5,5,5,5,5]
[null,null,"FİZİK",2,2,"-","-",null,null,"TÜRKÇE"]
[null,null,"KİMYA",2,2,"-","-",null,null,"TARİH + TC İnk. Tarihi ve Atatürkçülük",null,2,2,2,2,2,2,2,2]
[null,null,"BİYOLOJİ",2,2,"-","-",null,null,"SEÇMELİ TARİH",null,null,null,null,4,null,4,null,4]
[null,null,"FELSEFE","-",2,2,"-",null,null,"COĞRAFYA",null,2,2]
[null,null,"BİRİNCİ YABANCI DİL",4,4,4,4,null,null,"SEÇMELİ COĞRAFYA",null,null,null,null,4,null,4,null,4]
[null,null,"İKİNCİ YABANCI DİL",2,2,2,2,null,null,"FİZİK",null,2,2]
[null,null,"BEDEN EĞİTİMİ VE SPOR",2,2,2,2,null,null,"SEÇMELİ FİZİK",null,null,null,4,null,4,null,4]
[null,null,"GÖRSEL SANATLAR/MÜZİK",2,2,2,2,null,null,"KİMYA",null,2,2]
[null,null,"SAĞLIK BİLGİSİ VE TRAFİK KÜLTÜRÜ",1,"-","-","-",null,null,"SEÇMELİ KİMYA",null,null,null,4,null,4,null,4]
[null,"ORTAK DERS SAATİ TOPLAMI",null,34,35,21,19,null,null,"BİYOLOJİ",null,2,2]
[null,"SEÇMELİ DİL VE ANLATIM","SEÇMELİ TÜRK DİLİ VE EDEBİYATI (2)","-","-","(3)(5)","(3)(5)",null,null,"SEÇMELİ BİYOLOJİ",null,null,null,4,null,4,null,4]
[null,null,"DİKSİYON VE HİTABET (1)","-","-",1,1,null,null,"SAĞLIK BİLGİSİ VE TRAFİK KÜLTÜRÜ",null,1]
[null,null,"OSMANLI TÜRKÇESİ (3)",2,2,2,2,null,null,"DİN KÜLTÜRÜ VE AHLAK BİLGİSİ",null,2,2,2,2,2,2,2,2]
[null,null,"ORTAK TÜRK EDEBİYATI (1)","-",2,2,"-",null,null,"FELSEFE",null,null,2,2,2]
[null,null,"TEMEL MATEMATİK (2)","-","-",2,2,null,null,"BİRİNCİ YABANCI DİL",null,4,4,4,4,4,4,4,4]
[null,"SEÇMELİ MATEMATİK VE FEN BİLİMLERİ","SEÇMELİ MATEMATİK (2)","-","-",6,6,null,null,"İKİNCİ YABANCI DİL",null,2,2,2,2,2,2,2,2]
[null,null,"SEÇMELİ FİZİK (2)","-","-",4,4,null,null,"BEDEN EĞİTİMİ VE SPOR",null,2,2,2,2,2,2,2,2]
[null,null,"SEÇMELİ KİMYA (2)","-","-",4,4,null,null,"GÖRSEL SANATLAR/MÜZİK",null,2,2,2,2,2,2,2,2]
[null,null,"SEÇMELİ BİYOLOJİ (2)","-","-",4,4]
[null,null,"ASTRONOMİ VE UZAY BİLİMLERİ (1)","(1)(2)","(1)(2)","(1)(2)","(1)(2)",null,null,"SEÇİLEBİLECEK DERS SAATİ SAYISI",null,5,4,null,4,2,6,2,6]
[null,null,"MATEMATİK TARİHİ VE UYGULAMALARI (3)","-",2,2,2,null,null,"REHBERLİK VE YÖNLENDİRME",null,1,1,1,1,1,1,1,1]
[null,null,"FEN BİLİMLERİ TARİHİ VE UYGULAMALARI (3)","-",3,3,3,null,null,"TOPLAM DERS SAATİ",null,{"$f":"SUM(L7:L32)","v":40},40,40,40,40,40,40,40]
[null,"SEÇMELİ SOSYAL BİLİMLER","SEÇMELİ TARİH (1)","-","-","(2)(4)","(2)(4)"]
[null,null,"TÜRK KÜLTÜR VE MEDENİYET TARİHİ (1)","-","-","(2)(4)","(2)(4)"]
[null,null,"İSLAM KÜLTÜR VE MEDENİYETİ (1)",2,2,2,2]
[null,null,"İSLAM BİLİM TARİHİ (1)","-",2,2,2]
[null,null,"ÇAĞDAŞ TÜRK VE DÜNYA TARİHİ","-","-","-","(2)(4)"]
[null,null,"SEÇMELİ COĞRAFYA (2)","-","-",4,4]
[null,null,"PSİKOLOJİ (1)","-","-",2,2]
[null,null,"SOSYOLOJİ (1)","-","-",2,2]
[null,null,"MANTIK (1)","-","-",2,2]
[null,null,"BİLGİ KURAMI","(1)(2)","-","-","-"]
[null,null,"DEMOKRASİ VE İNSAN HAKLARI (1)",1,1,1,1]
[null,null,"İŞLETME (1)","-","-",2,2]
[null,null,"EKONOMİ (1)","-","-",2,2]
[null,null,"GİRİŞİMCİLİK (1)","-","-",1,1]
[null,null,"YÖNETİM BİLİMİ (1)","-","-",2,2]
[null,null,"ULUSLARARASI İLİŞKİLER (1)","-","-",2,2]
[null,null,"ORTAK TÜRK TARİHİ (1)","-",2,2,"-"]
[null,null,"TÜRK DÜNYASI COĞRAFYASI (1)","-",2,2,"-"]
[null,"DİN, AHLÂK VE DEĞERLER","KUR’AN-I KERİM (4)",2,2,2,2]
[null,null,"PEYGAMBERİMİZİN HAYATI (4)",2,2,2,2]
[null,null,"TEMEL DİNÎ BİLGİLER (2)","(1)(2)","(1)(2)","(1)(2)","(1)(2)"]
[null,"YABANCI DİLLER VE EDEBİYATI","SEÇMELİ BİRİNCİ YABANCI DİL (4)","(2)(4)","(2)(4)","(2)(10)","(2)(10)"]
[null,null,"SEÇMELİ İKİNCİ YABANCI DİL (4)","(2)(4)","(2)(4)","(2)(4)","(2)(4)"]
[null,null,"YABANCI DİLLER EDEBİYATI (4)","(1)(2)","(1)(2)","(1)(2)","(1)(2)"]
[null,"SPOR VE","SEÇMELİ BEDEN EĞİTİMİ VE SPOR (4)",2,2,2,2]
[null,"SOSYAL ETKİNLİK","SOSYAL ETKİNLİK (4)","(1)(2)","(1)(2)","(1)(2)","(1)(2)"]
[null,"GÜZEL SANATLAR","SEÇMELİ GÖRSEL SANATLAR (4)",2,2,2,2]
[null,null,"SEÇMELİ MÜZİK (4)",2,2,2,2]
[null,null,"SANAT TARİHİ (1)",2,2,2,2]
[null,null,"DRAMA (1)",1,1,1,1]
[null,null,"MÜZE EĞİTİMİ (1)",2,2,2,2]
[null,"BİLİŞİM","BİLGİSAYAR BİLİMİ (2)",2,2,2,2]
[null,null,"PROJE HAZIRLAMA (1)","(1)(2)","(1)(2)","(1)(2)","(1)(2)"]
[null,null,null,5,4,18,20]
[null,null,null,1,1,1,1]
[null,null,null,40,40,40,40]

{"sheet":"Açıklamalar","index":7,"n_rows":23,"n_cols":2,"rows_kept":23,"cut":false,"hidden":true,"merged":[]}
[]
[null,"ORTAÖĞRETİM KURUMLARI HAFTALIK DERS ÇİZELGELERİNİN UYGULANMASI İLE İLGİLİ AÇIKLAMALAR"]
[null,"·         Haftalık ders çizelgelerinde ortak dersler ve seçmeli dersler bölümleri yer almaktadır. Ortak dersler ortaöğretim kurumlarındaki öğrencilerin zorunlu olarak alması gereken derslerdir."]
[null,"·         Seçmeli derslerin kaç kez alınabileceği, dersin adının yanındaki parantez içinde belirtilmiştir."]
[null,"·         Çizelgedeki seçmeli derslerin haftalık ders saati sayıları, sınıflara göre parantez içinde ve seçenekli olarak verilmiştir. Öğrenciler her sınıfta parantez içindeki ders saatlerinden sadece birini seçebilirler. Örneğin seçmeli dersler bölümünde Sosyal Etkinlik dersi (1) (2)   şeklinde yer almaktadır. Öğrenciler, bu dersi ya \"1\" ya da \"2\" ders saati olarak seçeceklerdir."]
[null,"·         Türk dili ve edebiyatı, seçmeli Türk dili ve edebiyatı; tarih ve seçmeli tarih gibi derslerin değerlendirmeleri ayrı ayrı yapılır. Bu dersler, farklı öğretmenler tarafından okutulabileceği gibi aynı öğretmen tarafından da okutulabilir."]
[null,"·         Bilgi kuramı ve sosyal etkinlik dersleri notla değerlendirilmez."]
[null,"·         Seçmeli dersler öğrencinin ilgi ve istekleri ile hedefledikleri yükseköğretim programları doğrultusunda öğrenci, veli ve okul tarafından ortaklaşa belirlenecektir."]
[null,"·         Birinci ve ikinci yabancı dil derslerinde Bakanlar Kurulu Kararı ile öğretiminin yapılması kabul edilen yabancı diller okutulacaktır. Ortak ve seçmeli dersler grubunda yer alan birinci ve ikinci yabancı dil dersleri birbirinden farklı olmak zorundadır."]
[null,"·         Seçmeli derslerde gruplar oluşturulurken Millî Eğitim Bakanlığı Ortaöğretim Kurumları Yönetmeliği’nin ilgili maddesine göre işlem yapılır."]
[null,"·         Öğrenciler bir alt sınıfta okudukları seçmeli dersi ve/veya saatini bir üst sınıfta değiştirebilirler. Birbirinin devamı olan derslerin seçiminde, öğrencinin öğrenimini gördüğü öğretim programının bir üstü olan programın uygulanması esastır."]
[null,"·         Farklı sınıf seviyelerinde seçilen aynı derslerde öğrencilerin birlikte eğitim almaları sağlanabilir."]
[null,"·         Öğrenciler ilgi, istek ve okulun imkânları doğrultusunda “beden eğitimi ve spor/görsel sanatlar/müzik”, “görsel sanatlar/müzik”, “beden eğitimi ve spor/görsel sanatlar” veya “beden eğitimi ve spor/müzik” derslerinden sadece birini, Sosyal bilimler liselerinin hazırlık sınıfında ise söz konusunu derslerden farklı iki dersi seçer. Öğrenciler bu derslerden alt sınıfta seçtikleri bir dersi üst sınıflarda değiştirebilirler."]
[null,"·         Ders saatlerinin mevcut öğretim programlarında belirtilen ders saatinden az veya fazla olması hâlinde derslere ait öğretim programlarının amaç ve açıklamaları dikkate alınarak mevcut programlar doğrultusunda zümre öğretmenler kurulunca hazırlanacak programlaruygulanır."]
[null,"·         Öğretim programı olmayan seçmeli derslerde -varsa- ilgili derslere ait öğretim programlarının amaç ve açıklamaları da dikkate alınarak zümre öğretmenler kurulunca hazırlanacak programlar uygulanır."]
[null,"·         Ortaöğretim kurumlarının tamamında yılsonu başarı ortalaması ile başarılı sayılamayacak ders “Türk dili ve edebiyatı” dersidir. Bu dersin yanında; Güzel sanatlar lisesi müzik alanlarında:"]
[null,"-“Batı müziği teori ve uygulaması (Müzik)”, “Türk halk müziği teori ve uygulaması (Türk halk müziği)”, “ Türk sanat müziği teori ve uygulaması (Türk sanatmüziği)”"]
[null,"-  Güzel sanatlar lisesi görsel sanatlar bölümünde “desen”,"]
[null,"-  Spor lisesinde 9. sınıflarda “temel spor eğitimi”, 10, 11 ve 12. sınıflarda “bireysel sporlar”, yıl sonu başarı ortalaması ile başarılı sayılamayacak derslerdir."]
[null,"·         Güzel sanatlar liseleri ile spor liselerinde haftalık ders çizelgesine ağırlık verilmek kaydıyla bireysel ve grup derslerinde Millî Eğitim Bakanlığına Bağlı Okul ve Kurumların Yönetici ve Öğretmenlerinin Norm Kadrolarına İlişkin Yönetmelik’in ilgili hükümleri doğrultusunda yapılacak derslerin süresi, öğrenci ihtiyaçlarına göre belirlenir ve okulda yapılan çeşitli aktiviteleri içermez."]
[null,"·         “Piyano”, “bağlama”, “çalgı”, “bireysel ses eğitimi” ve “bireysel sporlar” dersleri öğrencinin öğretmen ile bire bir (en az 2 veya 3 öğrenci) yaptığı derslerdir. Ancak ilgili dersler yeterli öğretmen olmaması durumunda, grup olarak da yapılabilir. Çalgı Eğitimi dersinde; Talim ve Terbiye Kurulunca kabul edilen çalgıların “[bağlama, kaval, tar, kemane, yaylı sazları (kemança, Karadeniz kemençesi, kemane)] (THM), [tambur, ney, klasik kemençe, ut, kanun, keman, klarnet] (TSM), [gitar, flüt, bağlama, tambur, keman, viyola, çello, kontrbas, ney, ut, klasik kemençe, kanun, klarnet, kaval, vurmalı çalgılar, tar, kemane, yaylı sazlar (kemança, Karadeniz kemençesi, kemane)] (müzik)” eğitimi yapılacaktır."]
[]
[null,{"$f":"'prg1'!C35","v":"KAYNAK: Talim ve Terbiye Kurulu Başkanlığı, 01/11/2021 tarih, 45 sayı ve \"Ortaöğretim Kurumları Haftalık Ders Çizelgelerinde Değişiklik\" konulu yazısı."}]

{"sheet":"Sayfa1","index":8,"n_rows":0,"n_cols":0,"rows_kept":0,"cut":false,"hidden":true,"merged":[]}